{"text_format":"3","workbook":"xlsx","n_sheets":3,"sheets":["Volet 1","Volet 2","Annexe Volet2"],"not_rendered":{"images":1,"defined_names":7},"read":"whole","date_system":"1900"}

{"sheet":"Volet 1","index":0,"n_rows":80,"n_cols":10,"rows_kept":80,"merged":[[1,1,2,2],[1,3,1,4],[2,3,2,4],[4,1,4,6],[5,1,5,2],[5,3,5,6],[6,1,6,2],[6,3,6,6],[7,1,7,2],[7,3,7,6],[8,1,8,2],[8,3,8,6],[10,1,10,6],[11,1,11,2],[11,3,11,6],[12,1,12,2],[12,3,12,6],[13,1,13,2],[13,3,13,6],[14,1,14,2],[14,3,14,6],[15,1,15,2],[15,3,15,6],[17,2,17,3],[17,5,17,6],[18,1,18,6],[19,2,19,3],[19,5,19,6],[20,2,20,3],[20,5,20,6],[21,2,21,3],[21,5,21,6],[22,2,22,3],[22,5,22,6],[23,2,23,3],[23,5,23,6],[24,2,24,3],[24,5,24,6],[25,2,25,3],[25,5,25,6],[26,2,26,3],[26,5,26,6],[27,2,27,3],[27,5,27,6],[28,2,28,3],[28,5,28,6],[29,0,33,0],[29,1,33,1],[29,2,29,3],[29,5,33,6],[30,2,30,3],[31,2,31,3],[32,2,32,3],[33,2,33,3],[36,2,36,3],[36,5,36,6],[37,1,37,6],[38,0,44,0],[38,1,44,1],[38,2,38,3],[38,5,44,6],[39,2,39,3],[40,2,40,3],[41,2,41,3],[42,2,42,3],[43,2,43,3],[44,2,44,3],[45,2,45,3],[45,5,45,6],[46,2,46,3],[46,5,46,6],[47,2,47,3],[47,5,47,6],[48,2,48,3],[48,5,48,6],[49,2,49,3],[49,5,49,6],[50,2,50,3],[50,5,50,6],[51,2,51,3],[51,5,51,6],[52,2,52,3],[52,5,52,6],[53,2,53,3],[53,5,53,6],[55,2,55,3],[55,5,55,6],[56,1,56,6],[57,2,57,3],[57,5,57,6],[58,2,58,3],[58,5,58,6],[59,2,59,3],[59,5,59,6],[60,2,60,3],[60,5,60,6],[61,2,61,3],[61,5,61,6],[62,2,62,3],[62,5,62,6],[63,2,63,3],[63,5,63,6],[64,2,64,3],[64,5,64,6],[65,2,65,3],[65,5,65,6],[67,2,67,3],[67,5,67,6],[68,1,68,6],[69,2,69,3],[69,5,69,6],[70,2,70,3],[70,5,70,6],[71,2,71,3],[71,5,71,6],[72,2,72,3],[72,5,72,6],[74,3,74,4],[75,3,75,4],[76,3,76,4],[77,3,77,4],[78,3,78,4],[79,3,79,4]]}
[]
[{"$nulls":3},"Questionnaire d'informations\nRequest for Information",null,"Contact Tronico :\nTronico contact :","Nom Prenom"]
[{"$nulls":3},"Fournisseur",null,"Dernière Mise à jour :\nLast update :","Date"]
[]
[null,"Contact fournisseur - Ce formulaire a été complété par :\nSupplier contact  – This questionnaire has been completed by :"]
[null,"Nom, prénom / Name, First Name :\nLast name, first name : "]
[null,"Fonction / Function : "]
[null,"Téléphone / Phone : "]
[null,"E-mail :"]
[]
[null,"Siège Social :\nHead Office :"]
[null,"Adresse / Address :"]
[null,"Directeur Général / CEO :"]
[null,"Directeur commercial / Sales director :"]
[null,"Téléphone / Phone : "]
[null,"E-mail :"]
[]
["N° Thème","Item No.","Questions / Questions asked",null,"YES /  NO","Commentaires / Comments"]
[null," INFORMATIONS GENERALES / GENERAL INFORMATION",{"$nulls":7},"Impactant \n(Décision Acheteur/AQF)"]
[1,"1-1","Etes-vous intégré à un groupe ?  Lequel ?\nAre you part of a group ? Which one ?",{"$nulls":4},{"$f":"IF(E20=\"YES\",1,0) * I20","v":0},{"$f":"IF(J20=\"YES\",1,0)","v":1},"YES"]
[1,"1-2","Avez-vous un actionnaire majoritaire ? \nDo you have a majority shareholder? ",{"$nulls":4},{"$f":"IF(E21=\"YES\",1,0) * I21","v":0},1]
[1,"1-3","Est-ce que votre chiffre d'affaires est il stable ou croissant sur les 3 dernière années ? (nous communiquer le détail) \nIs your turnover stable or growing over the last 3 years? (communicate your detail)",{"$nulls":4},{"$f":"IF(E22=\"YES\",1,0) * I22","v":0},1]
[2,"1-4","Avez-vous un secteur d'activité représantant plus de 30% de votre chiffre d'affaire ? (nous communiquer le détail) \nDo you have an activity representing more than 30% of your turnover? (communicate your detail)",{"$nulls":4},{"$f":"IF(E23=\"NO\",1,0) * I23","v":0},1]
[2,"1-5","Avez-vous un client représentant plus de 20% de votre chiffre d'affaire ? \nDo you have a customer representing more than 20% of your turnover?",{"$nulls":4},{"$f":"IF(E24=\"NO\",1,0) * I24","v":0},1]
[1,"1-6","Consacrez vous plus de 5% du CA pour les investissements par an sur  ces 3 dernières années ?\nDo you dedicate more than 5% of turnover for investments per year over the last 3 years?",{"$nulls":4},0,1]
[1,"1-7","Votre notation à la banque de France est-elle inférieure ou égale à 4 ? Nous communiquer la note obtenue\nIs your rating at the Banque de France less than or equal to 4 ?  communicate your rating obtained",{"$nulls":4},0,1]
[1,"1-8","Posseder vous un système de gestion informatique? Si oui, lequel (ERP, GPAO …) ?\nDo you own a computer management system? If so, which one (ERP, GPAO ...)?",{"$nulls":4},0,1]
[1,"1-9","Effectif et organisation générale de l’entreprise /Fournir l'organigramme \nWorkforce and general organization of the company/Provide the organizational chart."]
[1,"1-10","Quelles sont les technologies cibles ? \nWhat are the target technologies?"]
[2,"1-11","Typologie de production / Typology of production :"]
[null,null,"Prototype",{"$nulls":4},{"$f":"IF(E31=\"YES\",1,0) * I31","v":0},1]
[null,null,"Petite série / Low volume",{"$nulls":4},0,1]
[null,null,"Moyenne série / Medium volume",{"$nulls":4},0,1]
[null,null,"Grande série / High volume",{"$nulls":4},0,{"$f":"IF(J34=\"YES\",1,0)","v":1},"YES"]
[]
[]
["N° Thème","Item No.","Questions / Questions asked",null,"YES /  NO","Commentaires / Comments"]
[null,"QUALITE / QUALITY"]
[3,"2-1","Certification :"]
[null,null,"ISO 9001",{"$nulls":4},{"$f":"IF(E40=\"YES\",1,0) * I40","v":0},1]
[null,null,"ISO 14001",{"$nulls":4},0,{"$f":"IF(J41=\"YES\",1,0)","v":0},"NO"]
[null,null,"ISO 13485",{"$nulls":4},0,{"$f":"IF(J42=\"YES\",1,0)","v":1},"YES"]
[null,null,"AS/EN 9100",{"$nulls":4},0,{"$f":"IF(J43=\"YES\",1,0)","v":1},"YES"]
[null,null,"NADCAP",{"$nulls":4},0,{"$f":"IF(J44=\"YES\",1,0)","v":1},"YES"]
[null,null,"Autres (Merci d'indiquer la certification)\nOther (Please indicate the certification)"]
[4,"2-2","Disposez-vous d'indicateurs de performance clients (qualité, ponctualité) ?\nDo you have customers performance indicators (quality, delay)?\n",{"$nulls":4},0,1]
[4,"2-3","Votre ponctualité globale client est-elle suppérieure ou égale à 95%?\nSi non quelle est votre poncutalité\nIs your overall customer punctuality greater than or equal to 95%?\nIf not, what is your punctuality",{"$nulls":4},0,1]
[4,"2-4","Votre performance qualité client est-elle inférieure à 3000 ppm? \nSi non quelle est votre performance qualité\nIs your customer quality performance below 3000 ppm?\nIf not, what is your quality performance?",{"$nulls":4},0,1]
[4,"2-5","Effectuez vous une traçabilité informatique des articles au lot ?\nDo you carry out a computerized traceability of items per the lot?",{"$nulls":4},0,1]
[4,"2-6","L’archivage des documents est il informatisé ?\nIs the archiving of documents computerized?",{"$nulls":4},0,1]
[4,"2-7","Avez-vous des procédés spéciaux ?  Lesquels ?\nDo you have special processes?  Which ?",{"$nulls":4},{"$f":"IF(E51=\"YES\",1,0) * I51","v":0},1]
[4,"2-8","Avez-vous un processus pour la qualification des processus spéciaux ?\nDo you have a process for qualification of special processes?",{"$nulls":4},0,1]
[4,"2-9","Les non-conformités sont elles enregistrées et les actions sont elles suivies ?\nAre nonconformities recorded and are actions monitored?",{"$nulls":4},0,1]
[null,"2-10","Disposez-vous d’un mode de gestion spécifique pour les données sensibles permettant d’en maitriser l’utilisation et l’accès ?\nDo you have a specific management mode for sensitive data to control its use and access?\n(Cf Instructions Interministérielles n°1300 sur la Protection du Secret de la Défense Nationale  et n°901 relative à la protection des systèmes d’informations sensibles)\nDonnées «CD» Confidentiel Défense, «DR» Diffusion Restreinte, «SF» Spécial France ...",{"$nulls":4},0,1]
[]
["N° Thème","Item No.","Questions / Questions asked",null,"YES /  NO","Commentaires / Comments"]
[null,"SUPPLY CHAIN"]
[5,"3-1","Les spécifications clients sont elles vérifiées lors de la revue de contrat ?\nAre customer specifications checked during the contract review?",{"$nulls":4},{"$f":"IF(E58=\"YES\",1,0) * I58","v":0},1]
[5,"3-2","Avez-vous un objectif d'émission d' AR au client ?\nDo you have a goal of orders acknowledgments to the customer?",{"$nulls":4},0,1]
[5,"3-3","L’ERP  permet de gérer les prévisionnels  des clients ?\nERP is used to manage customer forecasts?",{"$nulls":4},0,1]
[5,"3-4","Un CBN est il réalisé par l’ERP ? \nA quelle fréquence est il mis à jour?",{"$nulls":4},0,1]
[5,"3-5","Avez-vous un management de charge/ capacité  (PIC / PDP )?\nDo you have a charge / capacity management (PIC / PDP)?",{"$nulls":4},0,1]
[6,"3-6","Existe t il une fonction  achat / approvisionnement  ?\nIs there a purchase / supply function?",{"$nulls":4},0,1]
[6,"3-7","Sous-traitez-vous des activités ? Si oui, lesquelles ?\nDo you subcontract some activities? If so, which?\n",{"$nulls":4},{"$f":"IF(E64=\"NO\",1,0) * I64","v":0},1]
[6,"3-8","Suivez vous la performance des fournisseurs ? / Do you monitor the performance of suppliers?\nA quellle fréquence ? / at what frequency ?",{"$nulls":4},0,1]
[6,"3-9","Quelles sont les performances qualité et ponctualité de vos fournisseurs ?\nWhat are  performance of the quality and the time delivery performance of your suppliers?"]
[]
["N° Thème","Item No.","Questions / Questions asked",null,"YES /  NO","Commentaires / Comments"]
[null,"INDUSTRIALISATION , CO-DESIGN"]
[7,"4-1","Avez-vous mis en place un service dédié à la conception et au développement de nouveaux produits ?\nDo you have a dedicated department for design or for new products development ?",{"$nulls":4},{"$f":"IF(E70=\"YES\",1,0) * I70","v":0},{"$f":"IF(J70=\"YES\",1,0)","v":1},"YES"]
[7,"4-2","Avez-vous mis en place un service industrialisation ? \nDo you have an industrialization department ? ",{"$nulls":4},0,{"$f":"IF(J71=\"YES\",1,0)","v":1},"YES"]
[7,"4-3","Lors d'une évolution client, assurez vous une traçabilité de la modification  ?         \nAt a customer product evolution, do you realize a traceability of the modification ?",{"$nulls":4},0,1]
[7,"4-4","Avez-vous une gestion des PCN  pour les composants standards ?\nDo you have PCN  management for standard components?",{"$nulls":4},0,{"$f":"IF(J73=\"YES\",1,0)","v":1},"YES"]
[]
[{"$nulls":3},"Thèmes abordés (Calcul pour AC48)",null,"Risque (%)"]
[1,null,null,"Management & Strategy",null,{"$f":"100-100*SUM(H20:H22,H25:H27,H23:H24,H31:H34)/SUM(I20:I22,I25:I27,I23:I24,I31:I34)","v":100}]
[3,null,null,"Quality & risks management",null,{"$f":"100-100*SUM(H40:H44,H46:H50,H52:H53)/SUM(I40:I44,I46:I50,I52:I53)","v":100}]
[5,null,null,"Supply management",null,{"$f":"100-100*SUM(H58:H62)/SUM(I58:I62)","v":100}]
[6,null,null,"Supplier management",null,{"$f":"100-100*SUM(H63:H65)/SUM(I63:I65)","v":100}]
[7,null,null,"Industrialization & design",null,{"$f":"100-100*SUM(H70:H73)/SUM(I70:I73)","v":100}]

{"sheet":"Volet 2","index":1,"n_rows":135,"n_cols":11,"rows_kept":135,"merged":[[1,1,2,2],[1,3,1,4],[2,3,2,4],[4,1,4,6],[5,1,5,2],[5,3,5,6],[6,1,6,2],[6,3,6,6],[7,1,7,2],[7,3,7,6],[8,1,8,2],[8,3,8,6],[10,1,10,6],[11,1,11,2],[11,3,11,6],[12,1,12,2],[12,3,12,6],[13,1,13,2],[13,3,13,6],[14,1,14,2],[14,3,14,6],[15,1,15,2],[15,3,15,6],[16,1,16,2],[16,3,16,6],[17,1,17,2],[17,3,17,6],[18,1,18,2],[18,3,18,6],[19,1,19,2],[19,3,19,6],[20,1,20,2],[20,3,20,6],[21,1,21,2],[21,3,21,6],[22,1,22,6],[23,1,23,2],[23,3,23,6],[24,1,24,2],[24,3,24,6],[25,1,25,2],[25,3,25,6],[26,1,26,2],[26,3,26,6],[28,1,28,6],[29,1,29,6],[30,1,30,3],[31,1,31,3],[32,1,32,3],[33,1,33,3],[34,1,34,3],[35,1,35,6],[36,1,36,6],[37,1,37,2],[37,5,37,6],[38,1,38,2],[38,5,38,6],[39,1,39,2],[39,5,39,6],[40,1,40,2],[40,5,40,6],[41,1,41,2],[41,5,41,6],[42,1,42,2],[42,5,42,6],[43,1,43,6],[44,1,44,3],[44,4,44,6],[45,1,45,3],[45,4,45,6],[46,1,46,3],[46,4,46,6],[47,1,47,3],[47,4,47,6],[62,1,62,6],[63,1,63,2],[63,4,63,6],[64,1,64,2],[64,4,64,6],[65,1,65,2],[65,4,65,6],[66,1,66,2],[66,4,66,6],[79,1,79,6],[80,1,80,2],[81,1,81,2],[82,1,82,2],[83,1,83,2],[84,1,84,2],[85,1,85,2],[86,1,86,2],[88,1,88,6],[89,1,89,2],[89,3,89,4],[89,5,89,6],[90,1,90,2],[90,3,90,4],[90,5,90,6],[91,1,91,2],[91,3,91,4],[91,5,91,6],[92,1,92,2],[92,3,92,4],[92,5,92,6],[93,1,93,2],[93,3,93,4],[93,5,93,6],[94,1,94,2],[94,3,94,4],[94,5,94,6],[95,1,95,2],[95,3,95,4],[95,5,95,6],[97,1,97,6],[98,1,98,4],[99,1,99,4],[102,3,102,4],[103,3,103,4],[104,3,104,4],[105,3,105,4],[106,3,106,4],[107,3,107,4],[108,3,108,4],[109,3,109,4],[110,3,110,4],[112,1,112,6],[113,1,113,6],[115,1,115,6],[116,1,116,6],[117,1,117,6],[118,1,118,6],[119,1,119,6],[121,1,121,6],[134,1,134,6]]}
[]
[{"$nulls":3},"Questionnaire d'informations\nRequest for Information",null,"Contact Tronico :\nTronico contact :",{"$f":"'Volet 1'!G2","v":"Nom Prenom"}]
[{"$nulls":3},{"$f":"'Volet 1'!D3:E3","v":"Fournisseur"},null,"Dernière Mise à jour :\nLast update :",{"$f":"'Volet 1'!G3","v":"Date"}]
[]
[null,"Contact fournisseur - Ce formulaire a été complété par :\nSupplier contact  – This questionnaire has been completed by :"]
[null,"Nom, prénom / Name, First Name :\nLast name, first name : ",null,{"$f":"'Volet 1'!D6:G6","v":0}]
[null,"Fonction / Function : ",null,{"$f":"'Volet 1'!D7:G7","v":0}]
[null,"Téléphone / Phone : ",null,{"$f":"'Volet 1'!D8:G8","v":0}]
[null,"E-mail :",null,{"$f":"'Volet 1'!D9:G9","v":0}]
[]
[null,"INFORMATIONS SUR LA SOCIETE "]
[null,"Raison sociale"]
[null,"Forme juridique"]
[null,"Numéro d'imatriculation"]
[null,"Date d'immatriculation"]
[null,"Siège social"]
[null,"Site internet"]
[null,"Adresse email",null,{"$f":"'Volet 1'!D12:G12","v":0}]
[null,"Numéro de téléphone"]
[null,"Numéro de fax"]
[null,"Domaines d'activité"]
[null,"Capital social"]
[null,"REPRESENTANT LEGAL"]
[null,"Nom et Prénom",null,{"$f":"'Volet 1'!D13:G13","v":0}]
[null,"Date et lieu de naissance"]
[null,"Natonialité(s)"]
[null,"Fonction"]
[]
[null,"INFORMATIONS SUR L'ACTIONNARIAT"]
[null,"STRUCTURE DE L'ACTIONNARIAT"]
[null,"Entreprise publique (100%)"]
[null,"Société privée avec un actionnaire majoritaire public"]
[null,"Société privée non cotée en bourse"]
[null,"Société privée avec un actionnaire minoritaire public"]
[null,"Société privée cotée en bourse"]
[null,"Indiquer ci-dessous la composition des participations de la société (personnes physiques et/ou entités commerciales en remontant jusqu’au bénéficiaire ultime (personne physique)."]
[null,"ACTIONNARIAT : A LA DATE DE SIGNATURE DU QUESTIONNAIRE"]
[null,"Actionnaires / Détenteurs",null,"Nationalité (s)","Position","% de participation"]
[]
[]
[]
[]
[]
[null,"PRINCIPAUX DIRIGEANTS DE LA SOCIETE"]
[null,"Nom, prénom et fonction",null,null,"Nationalité(s)"]
[]
[]
[]
[null,"L'un de vos actionnaires ou dirigeants est-il ?"]
[]
[null,null,"une personne politique exposée (PEP)1",{"$nulls":7},"1 Cf. Annexe du questionnaire"]
[null,null,"un agent public ou une Entité publique"]
[null,"Si oui, veuillez mentionner ci-dessous le nom des personnes concernées (utiliser une feuille séparée si besoin) :"]
[null,"……………………………………………………………"]
[]
[null,"L’un de vos directeurs ou actionnaires a-t-il un poste de direction ou une participation dans une autre société (est-ce une Entreprise publique?)"]
[null,null,"Oui"]
[null,null,"Non"]
[null,"Si oui, veuillez indiquer le nom et la fonction des personnes concernées et le nom de la/des société(s) concernée(s) (utiliser une feuille séparée si besoin) :"]
[null,"……………………………………………………………"]
[]
[]
[null,"INFORMATIONS FINANCIERES"]
[null,"Exercice fiscal",null,"Chiffre d'affaires consolidé\n(EUR)","Résultat net\n(EUR)"]
[null,"N-1"]
[null,"N-2"]
[null,"N-3"]
[]
[null,"Avez-vous déjà été en défaut de paiement ou placé sous contrôle judiciaire ?"]
[null,null,"Oui"]
[null,null,"Non"]
[null,"Si tel est le cas, veuillez préciser le statut et les dates de la procédure passée ou en cours, et son résultat."]
[null,"……………………………………………………………"]
[]
[]
[]
[]
[]
[]
[null,"PRINCIPAUX SOUS-TRAITANTS DU PARTENAIRE POTENTIEL POUR LE PROJET"]
[null,"Nom et adresse",null,"Numéro et lieu d'immatriculation","Objet du contrat","Durée du contrat","Part sous-traitée du projet (%)"]
{"$rows_empty":7}
[null,"CONTACTS DU PARTENAIRE POTENTIEL DANS LE CADRE DU PROJET AVEC ALCEN"]
[{"$nulls":3},"CONTACT 1",null,"CONTACT 2"]
[null,"Nom"]
[null,"Prénom(s)"]
[null,"Date de naissance"]
[null,"Nationalité(s)"]
[null,"Email"]
[null,"Parcours professionnel en lien avec le projet proposé"]
[]
[null,"ETHIQUE"]
[null,"Votre société dispose-t-elle de codes, procédures ou politiques en lien avec l’éthique des affaires, le respect des lois anti-corruption, les cadeaux et invitations ?\n",{"$nulls":3},"OUI","NON"]
[null,"Votre société (ou une entité affiliée), un dirigeant (ou representant) actuel ou passé, ont-ils fait l’objet d’une suspension d’activité commerciale, d’une enquête ou d’une condamnation pour les infractions suivantes :"]
[{"$nulls":5},"OUI","NON"]
[]
[{"$nulls":3},"- Abus de confiance"]
[{"$nulls":3},"- Abus de biens sociaux"]
[{"$nulls":3},"- Blanchiment d'argent"]
[{"$nulls":3},"- Conflit d'intérêt"]
[{"$nulls":3},"- Détournement de fonds"]
[{"$nulls":3},"- Fraude à la règlementation Export control"]
[{"$nulls":3},"- Prise illégale d'intérêts"]
[{"$nulls":3},"- Recel"]
[{"$nulls":3},"- Trafic d'influence"]
[]
[null,"LISTE DES DOCUMENTS A FOURNIR (veuillez fournir une traduction en français ou en anglais de tout document qui ne serait dans une de ces lanques)"]
[null,"□ Document à jour attestant l’enregistrement, la création ou de la constitution de la société (Kbis ou autre).\n\n□ Les 3 derniers rapports annuels si disponibles et les 3 derniers rapports financiers audités (ou certifiés).\n\n□ Organigramme\n\n□ Documents relatifs à l’éthique des affaires, au respect des lois anti-corruption, à la politique en matière de cadeaux et invitations reçus ou donnés par la société.\n"]
[]
[null,"DECLARATIONS ET GARANTIES"]
[null,"PARTENAIRE POTENTIEL"]
[null,"Le partenaire potentiel:\n□ Déclare et garantit à ALCEN que toutes les informations et données fournies dans ce questionnaire sont vraies, à jour, cohérentes et conformes à la réalité, et qu’elles donnent une juste représentation de la situation du partenaire potentiel ;\n□ S’engage à effectuer toutes les mises à jour nécessaires de ce questionnaire et à informer sans délai le représentant d’ALCEN de tout changement de situation après la date de signature du questionnaire. ALCEN se réserve le droit d’effectuer toute investigation interne(s) ou externe(s) jugée(s) nécessaire(s) aux fins de vérifier les informations déclarées par le partenaire potentiel.\n□ Reconnaît et accepte expressément qu’ALCEN prendra en compte les informations contenues dans ce questionnaire avant de conclure tout accord avec le partenaire potentiel et que toute fausse déclaration autorisera ALCEN à se désister ou à résilier tout accord ou contrat qui a pu être conclu avec le partenaire potentiel, et ce sans pour autant que le partenaire potentiel puisse prétendre à une quelconque indemnisation. \n"]
[null,"ALCEN"]
[null,"ALCEN  utilisera les informations collectées dans ce questionnaire uniquement dans le cadre de la relation contractuelle avec le partenaire potentiel faisant l’objet de cet exercice de Due Diligence et sera libre de contracter ou non avec lui. Les données recueillies par ALCEN seront traitées selon les lois françaises et européennes relative à la protection des données  (telles que notamment le Règlement UE 2016/679 et la loi n°78-17 de Janvier 1978 relative à l’informatique, aux fichiers et la liberté). \nLa signature de ce questionnaire par le représentant légal du partenaire potentiel confirme qu’il ou elle a reçu l’accord préalable des personnes concernées pour la transmission de leurs données personnelles et qu’il ou elle est informé(e) que le traitement de ces données peut être réalisé par un tiers soumis à une confidentialité absolue et au strict respect des lois en vigueur. \n"]
[]
[null,"SIGNATURE DU QUESTIONNAIRE"]
[]
[null,"Lieu : ",{"$nulls":3},"Date :"]
[]
[]
[]
[]
[]
[null,"Nom, prénom et fonction du représentant légal du partenaire potentiel : "]
[null,"…………………………………………….."]
[]
[]
[]
[null,"Au cas où le representant legal n’est pas le signataire du questionnaire, veuillez fournir une délégation de pouvoir du representant legal donnant pouvoir au signataire du présent questionnaire)."]

{"sheet":"Annexe Volet2","index":2,"n_rows":5,"n_cols":1,"rows_kept":5,"merged":[[3,0,3,9],[4,0,4,9]]}
[]
["ANNEXE 1 PERSONNES POLITIQUEMENT EXPOSEES (PPE)"]
[]
["\n□ Définition de la notion de PPE : \n\nLa quatrième directive anti-blanchiment (UE) 2015/849 du 20 mai 2015 et les dispositions de l’article L. 561-10 2° du Code monétaire et financier définissent les PPE comme des personnes qui exercent, ou ont cessé d’exercer depuis moins d’un an, des fonctions politiques, juridictionnelles ou administratives pour le compte de la France, d’un Etat étranger ou d’une organisation internationale, ainsi que leurs proches.\n\n□ Les fonctions concernées2\n\n- Chef d’Etat, chef de gouvernement, membre d’un gouvernement national ou de la Commission européenne ;\n- Membre d’une assemblée parlementaire nationale (député comme sénateur) ou du Parlement européen, dirigeant d’un parti politique ;\n- Magistrat de la Cour de Cassation, conseiller d’Etat et membre du Conseil Constitutionnel ou leurs équivalents à l’étranger ;\n- Magistrat de la Cour des comptes ou leurs équivalents à l’étranger ;\n- Dirigeant ou membre de l’organe de direction d’une banque centrale ;\n- Ambassadeur ou chargé d’affaires ;\n- Officier général, ou officier supérieur assurant le commandement d’une armée ;\n- Membre d’un organe d’administration, de direction ou de surveillance d’une entreprise publique exerçant son activité au niveau national ;\n- Directeur, directeur adjoint, membre du conseil d’une organisation internationale.\n\n□ Les proches concernés3 \n\n- Les membres directs de la famille des PPE, notamment :\no Le conjoint (peu importe la nature de l’alliance) ;\no Les enfants, ainsi que leur conjoint ;\no Les parents.\n- Les personnes étroitement associées aux PPE, notamment dans le cadre d’une société ou structure juridique (fiducie ou trust) ou entretenant un lien d’affaires (commercial ou économique étroit).\n"]
["2 Cf. Article R. 561-18 I du Code monétaire et financier transposé de l’article 3 §9 de la directive (UE) 2015/849\n3 Cf. Article R. 561-18 II du Code monétaire et financier transposé de l’article 3 §10 et §11 de la directive (UE) 2015/849\n"]